[Event "*** SCC Grand Prix: Titled Tuesday Blitz"]
[Site "Chess.com"]
[Date "2020.09.29"]
[Round "9"]
[White "mapleaff"]
[Black "karinachess1"]
[Result "0-1"]
[WhiteElo "2366"]
[BlackElo "2501"]
[TimeControl "180+1"]
[EndTime "11:44:11 PDT"]
[Termination "karinachess1 won on time"]

1. d4 {[%clk 0:03:00.9]} 1... Nf6 {[%clk 0:02:58.8]} 2. c4 {[%clk 0:03:01.4]}
2... g6 {[%clk 0:02:58.5]} 3. Nc3 {[%clk 0:03:01.9]} 3... Bg7 {[%clk 0:02:59]}
4. Bg5 {[%clk 0:03:01.1]} 4... O-O {[%clk 0:02:57.9]} 5. Nf3 {[%clk 0:03:00.7]}
5... h6 {[%clk 0:02:58]} 6. Bh4 {[%clk 0:03:00.2]} 6... d6 {[%clk 0:02:58.2]} 7.
e3 {[%clk 0:03:00]} 7... c5 {[%clk 0:02:58.2]} 8. d5 {[%clk 0:02:58.3]} 8... g5
{[%clk 0:02:54.9]} 9. Bg3 {[%clk 0:02:57.8]} 9... Nh5 {[%clk 0:02:55.2]} 10. Nd2
{[%clk 0:02:52.7]} 10... Nxg3 {[%clk 0:02:49.3]} 11. hxg3 {[%clk 0:02:53.6]}
11... e6 {[%clk 0:02:43]} 12. Qc2 {[%clk 0:02:46.9]} 12... f5 {[%clk 0:02:41.1]}
13. dxe6 {[%clk 0:02:45.3]} 13... Bxe6 {[%clk 0:02:40.9]} 14. O-O-O {[%clk
0:02:44.3]} 14... Nc6 {[%clk 0:02:38.4]} 15. a3 {[%clk 0:02:41.9]} 15... a6
{[%clk 0:02:28.5]} 16. Nb3 {[%clk 0:02:22.5]} 16... Qe7 {[%clk 0:02:18.4]} 17.
Be2 {[%clk 0:02:09]} 17... b5 {[%clk 0:01:54.6]} 18. cxb5 {[%clk 0:01:50.5]}
18... axb5 {[%clk 0:01:54.6]} 19. Bxb5 {[%clk 0:01:50]} 19... Ne5 {[%clk
0:01:42.5]} 20. a4 {[%clk 0:01:34.5]} 20... Qb7 {[%clk 0:01:36.9]} 21. f4 {[%clk
0:01:28.9]} 21... Nc4 {[%clk 0:01:06.6]} 22. Rhe1 {[%clk 0:01:09.9]} 22... Rad8
{[%clk 0:00:23]} 23. Rd3 {[%clk 0:00:33.1]} 23... Nb6 {[%clk 0:00:21.5]} 24. Rd2
{[%clk 0:00:25.5]} 24... Qc7 {[%clk 0:00:18.6]} 25. Red1 {[%clk 0:00:22.2]}
25... d5 {[%clk 0:00:19]} 26. Ne2 {[%clk 0:00:16.1]} 26... Rc8 {[%clk
0:00:16.9]} 27. Kb1 {[%clk 0:00:14.9]} 27... Rfd8 {[%clk 0:00:16.4]} 28. Rc1
{[%clk 0:00:07.4]} 28... c4 {[%clk 0:00:15.1]} 29. Nbd4 {[%clk 0:00:07.4]} 29...
Bd7 {[%clk 0:00:13.9]} 30. Bxd7 {[%clk 0:00:06.1]} 30... Qxd7 {[%clk 0:00:14.8]}
31. Qxf5 {[%clk 0:00:06.4]} 31... Qxa4 {[%clk 0:00:15]} 32. Qe6+ {[%clk
0:00:05.3]} 32... Kh8 {[%clk 0:00:14.5]} 33. Qxb6 {[%clk 0:00:05.7]} 33... Ra8
{[%clk 0:00:14.4]} 34. Nc3 {[%clk 0:00:05.3]} 34... Qd7 {[%clk 0:00:11.9]} 35.
Qc6 {[%clk 0:00:04.9]} 35... Qf7 {[%clk 0:00:10.9]} 36. Rh1 {[%clk 0:00:03.7]}
36... Bxd4 {[%clk 0:00:09.4]} 37. Qxh6+ {[%clk 0:00:02.3]} 37... Kg8 {[%clk
0:00:09.7]} 38. exd4 {[%clk 0:00:01.5]} 38... Qf5+ {[%clk 0:00:09.6]} 0-1

[Event "*** SCC Grand Prix: Titled Tuesday Blitz"]
[Site "Chess.com"]
[Date "2020.09.29"]
[Round "9"]
[White "A-S-00"]
[Black "sergeikim"]
[Result "0-1"]
[WhiteElo "2269"]
[BlackElo "2424"]
[TimeControl "180+1"]
[EndTime "11:44:12 PDT"]
[Termination "sergeikim won on time"]

1. d4 {[%clk 0:02:59.3]} 1... Nf6 {[%clk 0:02:59.9]} 2. c4 {[%clk 0:02:58.3]}
2... g6 {[%clk 0:02:59.8]} 3. g3 {[%clk 0:02:57.5]} 3... Bg7 {[%clk 0:02:59.9]}
4. Bg2 {[%clk 0:02:57.5]} 4... O-O {[%clk 0:03:00.5]} 5. Nf3 {[%clk 0:02:57.5]}
5... d6 {[%clk 0:03:01.1]} 6. O-O {[%clk 0:02:57.3]} 6... Nbd7 {[%clk 0:03:01]}
7. Nc3 {[%clk 0:02:57.2]} 7... e5 {[%clk 0:03:00.7]} 8. e4 {[%clk 0:02:56.6]}
8... exd4 {[%clk 0:03:00.5]} 9. Nxd4 {[%clk 0:02:55.7]} 9... Re8 {[%clk
0:03:00.5]} 10. h3 {[%clk 0:02:54.4]} 10... Nc5 {[%clk 0:03:00.2]} 11. Re1
{[%clk 0:02:54.1]} 11... c6 {[%clk 0:02:59.5]} 12. Kh2 {[%clk 0:02:45.7]} 12...
a5 {[%clk 0:02:59.2]} 13. b3 {[%clk 0:02:32.5]} 13... Nfd7 {[%clk 0:02:57.4]}
14. Bb2 {[%clk 0:02:24.1]} 14... Qb6 {[%clk 0:02:54.7]} 15. Rb1 {[%clk
0:01:53.2]} 15... Ne5 {[%clk 0:02:51.9]} 16. Re3 {[%clk 0:00:58.9]} 16... a4
{[%clk 0:02:47.1]} 17. Nxa4 {[%clk 0:00:52.5]} 17... Nxa4 {[%clk 0:02:46]} 18.
bxa4 {[%clk 0:00:52.2]} 18... Qa5 {[%clk 0:02:45]} 19. Nb3 {[%clk 0:00:48.1]}
19... Qxa4 {[%clk 0:02:44.4]} 20. Bxe5 {[%clk 0:00:37.8]} 20... dxe5 {[%clk
0:02:36.4]} 21. c5 {[%clk 0:00:32.8]} 21... Be6 {[%clk 0:02:29.2]} 22. Rb2
{[%clk 0:00:31.9]} 22... Red8 {[%clk 0:02:14.3]} 23. Qc2 {[%clk 0:00:30.5]}
23... Qc4 {[%clk 0:01:56.8]} 24. Qb1 {[%clk 0:00:25.3]} 24... Qa4 {[%clk
0:01:50.8]} 25. Bf1 {[%clk 0:00:23]} 25... Bh6 {[%clk 0:01:45.3]} 26. Re1 {[%clk
0:00:21.9]} 26... Rd7 {[%clk 0:01:38.8]} 27. Nc1 {[%clk 0:00:18.1]} 27... Qa5
{[%clk 0:01:32.4]} 28. Nd3 {[%clk 0:00:17]} 28... Bg7 {[%clk 0:01:19.7]} 29.
Rxb7 {[%clk 0:00:13.9]} 29... Bxa2 {[%clk 0:01:15.9]} 30. Qb4 {[%clk 0:00:13.4]}
30... Qxb4 {[%clk 0:01:07.7]} 31. Rxb4 {[%clk 0:00:13]} 31... Be6 {[%clk
0:01:04.3]} 32. Rb6 {[%clk 0:00:12.2]} 32... Rc7 {[%clk 0:01:00.7]} 33. Nb4
{[%clk 0:00:12.3]} 33... Bf8 {[%clk 0:00:59.1]} 34. Rxc6 {[%clk 0:00:08.2]}
34... Rb7 {[%clk 0:00:52.3]} 35. Nd3 {[%clk 0:00:06.6]} 35... Ra2 {[%clk
0:00:46.4]} 36. Nxe5 {[%clk 0:00:06.1]} 36... Rxf2+ {[%clk 0:00:44.8]} 37. Kg1
{[%clk 0:00:06.3]} 37... Rc2 {[%clk 0:00:43.2]} 38. Bd3 {[%clk 0:00:05.5]} 38...
Rxc5 {[%clk 0:00:39.7]} 39. Rxc5 {[%clk 0:00:04]} 39... Bxc5+ {[%clk 0:00:39.3]}
40. Kg2 {[%clk 0:00:04.3]} 40... Bd4 {[%clk 0:00:37.4]} 41. Nf3 {[%clk
0:00:03.9]} 41... Bf6 {[%clk 0:00:34.2]} 42. Rc1 {[%clk 0:00:03.9]} 42... Rb3
{[%clk 0:00:32.5]} 43. Be2 {[%clk 0:00:02.2]} 43... Rb2 {[%clk 0:00:32.2]} 44.
Re1 {[%clk 0:00:01.2]} 44... Bc4 {[%clk 0:00:31.1]} 0-1

[Event "*** SCC Grand Prix: Titled Tuesday Blitz"]
[Site "Chess.com"]
[Date "2020.09.29"]
[Round "9"]
[White "OsorioFernando"]
[Black "Snowflake"]
[Result "0-1"]
[WhiteElo "2302"]
[BlackElo "2473"]
[TimeControl "180+1"]
[EndTime "11:44:14 PDT"]
[Termination "Snowflake won on time"]

1. e4 {[%clk 0:03:00]} 1... e6 {[%clk 0:02:59.7]} 2. d4 {[%clk 0:02:59.4]} 2...
d5 {[%clk 0:03:00.6]} 3. Bd3 {[%clk 0:02:59.6]} 3... Nf6 {[%clk 0:02:59.7]} 4.
e5 {[%clk 0:02:58.1]} 4... Nfd7 {[%clk 0:03:00]} 5. c4 {[%clk 0:02:56.2]} 5...
dxc4 {[%clk 0:02:57]} 6. Bxc4 {[%clk 0:02:53]} 6... c5 {[%clk 0:02:57.3]} 7.
dxc5 {[%clk 0:02:52.6]} 7... Nc6 {[%clk 0:02:55.1]} 8. Nc3 {[%clk 0:02:45.7]}
8... Ncxe5 {[%clk 0:02:52.5]} 9. Bb3 {[%clk 0:02:31.3]} 9... Bxc5 {[%clk
0:02:51.4]} 10. Bf4 {[%clk 0:02:27.2]} 10... O-O {[%clk 0:02:50.4]} 11. Nf3
{[%clk 0:02:25.6]} 11... Nxf3+ {[%clk 0:02:49.5]} 12. Qxf3 {[%clk 0:02:24.7]}
12... Nf6 {[%clk 0:02:47.9]} 13. O-O {[%clk 0:02:20.3]} 13... Qe7 {[%clk
0:02:47.7]} 14. Bg5 {[%clk 0:02:19.6]} 14... h6 {[%clk 0:02:42.3]} 15. Bh4
{[%clk 0:02:19.3]} 15... Rb8 {[%clk 0:02:17.6]} 16. Rad1 {[%clk 0:02:15.8]}
16... Bd7 {[%clk 0:02:17.2]} 17. Ne4 {[%clk 0:02:10.9]} 17... Bc6 {[%clk
0:01:45.9]} 18. Bxf6 {[%clk 0:01:43.4]} 18... gxf6 {[%clk 0:01:12.8]} 19. Nxf6+
{[%clk 0:01:41.4]} 19... Kg7 {[%clk 0:01:03.5]} 20. Nh5+ {[%clk 0:01:38.9]}
20... Kh8 {[%clk 0:00:54.3]} 21. Qc3+ {[%clk 0:01:06.1]} 21... f6 {[%clk
0:00:53.4]} 22. Rfe1 {[%clk 0:01:05.5]} 22... e5 {[%clk 0:00:53.1]} 23. Ng3
{[%clk 0:00:57.6]} 23... Bb6 {[%clk 0:00:46.3]} 24. Nf5 {[%clk 0:00:56.4]} 24...
Qh7 {[%clk 0:00:46.7]} 25. Qh3 {[%clk 0:00:52.7]} 25... h5 {[%clk 0:00:42.3]}
26. Bd5 {[%clk 0:00:48.3]} 26... Rbd8 {[%clk 0:00:31.6]} 27. Bxc6 {[%clk
0:00:41.8]} 27... bxc6 {[%clk 0:00:32.5]} 28. Qf3 {[%clk 0:00:35.5]} 28... Rd5
{[%clk 0:00:31]} 29. Rc1 {[%clk 0:00:22.6]} 29... e4 {[%clk 0:00:29.2]} 30. Qa3
{[%clk 0:00:12.9]} 30... Bxf2+ {[%clk 0:00:25.4]} 31. Kxf2 {[%clk 0:00:12.5]}
31... Rxf5+ {[%clk 0:00:25]} 32. Kg1 {[%clk 0:00:12.9]} 32... Re8 {[%clk
0:00:25.6]} 33. Qd6 {[%clk 0:00:11.4]} 33... e3 {[%clk 0:00:25.2]} 34. Qxc6
{[%clk 0:00:11]} 34... Qe7 {[%clk 0:00:25.4]} 35. Qc4 {[%clk 0:00:05.9]} 35...
e2 {[%clk 0:00:25.5]} 36. Rc2 {[%clk 0:00:04.8]} 36... Qe3+ {[%clk 0:00:25.9]}
37. Kh1 {[%clk 0:00:04.2]} 37... Rf1+ {[%clk 0:00:19]} 38. Rxf1 {[%clk
0:00:03.2]} 38... e1=Q {[%clk 0:00:19.9]} 0-1

[Event "*** SCC Grand Prix: Titled Tuesday Blitz"]
[Site "Chess.com"]
[Date "2020.09.29"]
[Round "9"]
[White "HouseOfDurin"]
[Black "Kaslask"]
[Result "1-0"]
[WhiteElo "2165"]
[BlackElo "2331"]
[TimeControl "180+1"]
[EndTime "11:44:16 PDT"]
[Termination "HouseOfDurin won on time"]

1. d4 {[%clk 0:03:00.9]} 1... Nf6 {[%clk 0:02:59.6]} 2. Bg5 {[%clk 0:03:01.5]}
2... e6 {[%clk 0:02:56.5]} 3. e4 {[%clk 0:03:00.9]} 3... h6 {[%clk 0:02:55.4]}
4. Bxf6 {[%clk 0:03:01.3]} 4... Qxf6 {[%clk 0:02:55.1]} 5. e5 {[%clk 0:03:02]}
5... Qd8 {[%clk 0:02:54.2]} 6. f4 {[%clk 0:03:02.4]} 6... c5 {[%clk 0:02:48.5]}
7. d5 {[%clk 0:03:01.6]} 7... d6 {[%clk 0:02:47.2]} 8. dxe6 {[%clk 0:02:59.2]}
8... Bxe6 {[%clk 0:02:45.6]} 9. Nf3 {[%clk 0:02:57.6]} 9... Nc6 {[%clk
0:02:42.1]} 10. Bb5 {[%clk 0:02:54.5]} 10... Qa5+ {[%clk 0:02:36]} 11. Nc3
{[%clk 0:02:54.4]} 11... O-O-O {[%clk 0:02:10.4]} 12. Bxc6 {[%clk 0:02:53.9]}
12... bxc6 {[%clk 0:02:09.8]} 13. exd6 {[%clk 0:02:43.4]} 13... Bxd6 {[%clk
0:02:07.7]} 14. Qc1 {[%clk 0:02:31.6]} 14... Qb4 {[%clk 0:02:05.6]} 15. g3
{[%clk 0:02:18.1]} 15... Bh3 {[%clk 0:02:04.3]} 16. Kf2 {[%clk 0:02:14.4]} 16...
c4 {[%clk 0:02:00]} 17. Ne4 {[%clk 0:02:02.5]} 17... Rhe8 {[%clk 0:01:49.6]} 18.
Qe3 {[%clk 0:01:28.2]} 18... Rxe4 {[%clk 0:00:44]} 19. Qxe4 {[%clk 0:01:20.7]}
19... Bc5+ {[%clk 0:00:40.2]} 20. Ke2 {[%clk 0:01:13.4]} 20... Rd6 {[%clk
0:00:30.7]} 21. Qe8+ {[%clk 0:00:54.1]} 21... Kc7 {[%clk 0:00:30.4]} 22. Qxf7+
{[%clk 0:00:53.4]} 22... Rd7 {[%clk 0:00:29.6]} 23. Qh5 {[%clk 0:00:42.4]} 23...
Bg2 {[%clk 0:00:21.5]} 24. Rhd1 {[%clk 0:00:37.2]} 24... Re7+ {[%clk 0:00:16.2]}
25. Ne5 {[%clk 0:00:34.5]} 25... Qxb2 {[%clk 0:00:14.7]} 26. Rac1 {[%clk
0:00:26.3]} 26... Be4 {[%clk 0:00:13.8]} 27. Kf1 {[%clk 0:00:09.1]} 27... Qc3
{[%clk 0:00:13.4]} 28. Qe2 {[%clk 0:00:08]} 28... Bd4 {[%clk 0:00:11.1]} 29.
Rxd4 {[%clk 0:00:06.5]} 29... Qxd4 {[%clk 0:00:10.2]} 30. Re1 {[%clk 0:00:07]}
30... Bd5 {[%clk 0:00:09.3]} 31. Qe3 {[%clk 0:00:05.8]} 31... Qxe3 {[%clk
0:00:07.4]} 32. Rxe3 {[%clk 0:00:06.7]} 32... g5 {[%clk 0:00:07.3]} 33. Ra3
{[%clk 0:00:06.2]} 33... gxf4 {[%clk 0:00:06.8]} 34. Rxa7+ {[%clk 0:00:06.7]}
34... Kb6 {[%clk 0:00:06.4]} 35. Rxe7 {[%clk 0:00:07.6]} 35... fxg3 {[%clk
0:00:05.1]} 36. hxg3 {[%clk 0:00:08.4]} 36... Kc5 {[%clk 0:00:05.2]} 37. Nf7
{[%clk 0:00:08.1]} 37... Kd4 {[%clk 0:00:04.8]} 38. Nxh6 {[%clk 0:00:07.5]}
38... Kc3 {[%clk 0:00:05.4]} 39. Rd7 {[%clk 0:00:07]} 39... Kxc2 {[%clk
0:00:05.5]} 40. Nf5 {[%clk 0:00:07.3]} 40... Kd3 {[%clk 0:00:05]} 41. Ne7 {[%clk
0:00:06.9]} 41... Kd4 {[%clk 0:00:03.7]} 42. Nxd5 {[%clk 0:00:07.5]} 42... cxd5
{[%clk 0:00:03.4]} 43. Ke1 {[%clk 0:00:08.3]} 1-0

[Event "*** SCC Grand Prix: Titled Tuesday Blitz"]
[Site "Chess.com"]
[Date "2020.09.29"]
[Round "9"]
[White "AniJak"]
[Black "TheMagnet"]
[Result "0-1"]
[WhiteElo "2377"]
[BlackElo "2575"]
[TimeControl "180+1"]
[EndTime "11:44:19 PDT"]
[Termination "TheMagnet won by resignation"]

1. e4 {[%clk 0:03:00.9]} 1... c5 {[%clk 0:02:59.8]} 2. Nc3 {[%clk 0:03:01.2]}
2... g6 {[%clk 0:02:59.9]} 3. g3 {[%clk 0:03:01.2]} 3... Bg7 {[%clk 0:03:00.2]}
4. Bg2 {[%clk 0:03:01.5]} 4... Nc6 {[%clk 0:03:00.5]} 5. d3 {[%clk 0:03:01.6]}
5... d6 {[%clk 0:03:00.3]} 6. Nh3 {[%clk 0:03:01.6]} 6... Rb8 {[%clk 0:02:57.9]}
7. O-O {[%clk 0:03:01.7]} 7... e6 {[%clk 0:02:57.4]} 8. f4 {[%clk 0:03:01.8]}
8... Nge7 {[%clk 0:02:57.5]} 9. g4 {[%clk 0:02:58.6]} 9... f5 {[%clk 0:02:51.6]}
10. g5 {[%clk 0:02:54.6]} 10... O-O {[%clk 0:02:48.9]} 11. Be3 {[%clk
0:02:54.1]} 11... Nd4 {[%clk 0:02:46.1]} 12. Qd2 {[%clk 0:02:54.4]} 12... b5
{[%clk 0:02:45.9]} 13. Nd1 {[%clk 0:02:54.5]} 13... b4 {[%clk 0:02:42.2]} 14. c3
{[%clk 0:02:53.8]} 14... bxc3 {[%clk 0:02:42.4]} 15. bxc3 {[%clk 0:02:54.1]}
15... Nb5 {[%clk 0:02:42.2]} 16. a4 {[%clk 0:02:54.2]} 16... Nc7 {[%clk
0:02:42]} 17. e5 {[%clk 0:02:50.4]} 17... Ncd5 {[%clk 0:02:32.1]} 18. exd6
{[%clk 0:02:33.3]} 18... Qxd6 {[%clk 0:02:33]} 19. Kh1 {[%clk 0:02:11.3]} 19...
Nxe3 {[%clk 0:02:23.4]} 20. Nxe3 {[%clk 0:02:11.1]} 20... Bb7 {[%clk 0:02:19.1]}
21. Rad1 {[%clk 0:02:04.7]} 21... Bxg2+ {[%clk 0:02:16.5]} 22. Nxg2 {[%clk
0:01:58.3]} 22... Nd5 {[%clk 0:02:10.4]} 23. Rc1 {[%clk 0:01:40.4]} 23... Rb3
{[%clk 0:02:03.5]} 24. c4 {[%clk 0:01:30.1]} 24... Nb4 {[%clk 0:02:02.6]} 25.
Nf2 {[%clk 0:01:22.2]} 25... Rb2 {[%clk 0:01:44.5]} 26. Qd1 {[%clk 0:01:13.9]}
26... Bd4 {[%clk 0:01:36]} 27. Nh3 {[%clk 0:01:12]} 27... Qc6 {[%clk 0:01:31.6]}
28. Qf3 {[%clk 0:00:54.6]} 28... Rc8 {[%clk 0:01:24.1]} 29. Rce1 {[%clk
0:00:51.6]} 29... Nxd3 {[%clk 0:01:18.9]} 30. Qxc6 {[%clk 0:00:48.6]} 30... Rxc6
{[%clk 0:01:17.8]} 31. Rd1 {[%clk 0:00:48.7]} 31... Nb4 {[%clk 0:01:13]} 32. Ne1
{[%clk 0:00:48]} 32... Ra6 {[%clk 0:01:11.3]} 33. Nf3 {[%clk 0:00:47.4]} 33...
Nc6 {[%clk 0:01:04.6]} 34. Rde1 {[%clk 0:00:42.3]} 34... Kf7 {[%clk 0:01:04.1]}
35. Rb1 {[%clk 0:00:33.1]} 35... Rab6 {[%clk 0:00:55.4]} 36. Rxb2 {[%clk
0:00:24.3]} 36... Rxb2 {[%clk 0:00:56.3]} 37. Nhg1 {[%clk 0:00:21.6]} 37... Rb4
{[%clk 0:00:54.1]} 38. Ne2 {[%clk 0:00:17.3]} 38... Rxa4 {[%clk 0:00:49.9]} 39.
Rb1 {[%clk 0:00:16.6]} 39... Ra1 {[%clk 0:00:45.5]} 40. Rxa1 {[%clk 0:00:14.1]}
40... Bxa1 {[%clk 0:00:46.4]} 41. Nc1 {[%clk 0:00:12.1]} 41... Bd4 {[%clk
0:00:41.8]} 42. Nb3 {[%clk 0:00:11.7]} 42... Be3 {[%clk 0:00:41.1]} 43. Ne1
{[%clk 0:00:07.8]} 43... a5 {[%clk 0:00:39.7]} 44. Nd3 {[%clk 0:00:07.4]} 44...
a4 {[%clk 0:00:36.5]} 45. Nbxc5 {[%clk 0:00:07.7]} 45... Bxc5 {[%clk 0:00:35.3]}
46. Nxc5 {[%clk 0:00:07.9]} 46... a3 {[%clk 0:00:35.7]} 47. Nb3 {[%clk
0:00:08.1]} 47... a2 {[%clk 0:00:36.2]} 48. Kg2 {[%clk 0:00:07.4]} 48... Na5
{[%clk 0:00:35.3]} 49. Na1 {[%clk 0:00:06.8]} 49... Nxc4 {[%clk 0:00:35.6]} 50.
Kf3 {[%clk 0:00:07.4]} 50... e5 {[%clk 0:00:33]} 51. fxe5 {[%clk 0:00:05.8]}
51... Ke6 {[%clk 0:00:33.6]} 52. Ke2 {[%clk 0:00:04.7]} 52... Nxe5 {[%clk
0:00:31.7]} 53. Kd2 {[%clk 0:00:04.3]} 53... Nf3+ {[%clk 0:00:31.9]} 54. Kc2
{[%clk 0:00:04.1]} 54... Nxh2 {[%clk 0:00:31.6]} 55. Kb2 {[%clk 0:00:04.3]}
55... Nf3 {[%clk 0:00:31.8]} 0-1

[Event "*** SCC Grand Prix: Titled Tuesday Blitz"]
[Site "Chess.com"]
[Date "2020.09.29"]
[Round "9"]
[White "rasmussvane"]
[Black "Jumbo"]
[Result "1-0"]
[WhiteElo "2898"]
[BlackElo "2709"]
[TimeControl "180+1"]
[EndTime "11:44:20 PDT"]
[Termination "rasmussvane won by resignation"]

1. Nf3 {[%clk 0:03:00.9]} 1... d5 {[%clk 0:02:59.2]} 2. g3 {[%clk 0:03:01]} 2...
c6 {[%clk 0:02:57.5]} 3. Bg2 {[%clk 0:03:01.1]} 3... Bg4 {[%clk 0:02:57.9]} 4.
O-O {[%clk 0:03:01.1]} 4... Nd7 {[%clk 0:02:57.8]} 5. h3 {[%clk 0:03:01.5]} 5...
Bh5 {[%clk 0:02:56.4]} 6. d4 {[%clk 0:03:01.6]} 6... Ngf6 {[%clk 0:02:50.6]} 7.
c4 {[%clk 0:03:01.9]} 7... e6 {[%clk 0:02:50.3]} 8. cxd5 {[%clk 0:03:01.7]} 8...
exd5 {[%clk 0:02:50.5]} 9. Ne5 {[%clk 0:03:01.9]} 9... Bg6 {[%clk 0:02:30.7]}
10. Nc3 {[%clk 0:03:01.2]} 10... Bb4 {[%clk 0:02:26.4]} 11. Qb3 {[%clk
0:02:51.8]} 11... Qb6 {[%clk 0:02:20.1]} 12. Nxg6 {[%clk 0:02:09.5]} 12... hxg6
{[%clk 0:02:18.9]} 13. Rd1 {[%clk 0:02:09.3]} 13... O-O {[%clk 0:02:11.1]} 14.
Na4 {[%clk 0:02:04.1]} 14... Qa5 {[%clk 0:02:10.7]} 15. a3 {[%clk 0:02:04.2]}
15... Bd6 {[%clk 0:02:10.1]} 16. Bd2 {[%clk 0:02:02.7]} 16... Qc7 {[%clk
0:02:10.5]} 17. Rac1 {[%clk 0:01:56.9]} 17... Rad8 {[%clk 0:02:06.9]} 18. Qc2
{[%clk 0:01:48.8]} 18... Rfe8 {[%clk 0:02:04.3]} 19. Nc3 {[%clk 0:01:43.9]}
19... Qb8 {[%clk 0:01:56.3]} 20. Bg5 {[%clk 0:01:37.8]} 20... Rc8 {[%clk
0:01:35]} 21. Qd3 {[%clk 0:01:33.2]} 21... a5 {[%clk 0:01:30]} 22. Re1 {[%clk
0:01:20.5]} 22... Re6 {[%clk 0:01:24.4]} 23. h4 {[%clk 0:01:15.5]} 23... Rce8
{[%clk 0:01:24]} 24. Bh3 {[%clk 0:01:15]} 24... R6e7 {[%clk 0:01:16.5]} 25. Qf3
{[%clk 0:01:06.8]} 25... Bc7 {[%clk 0:00:49.5]} 26. Kg2 {[%clk 0:01:02.5]} 26...
Bb6 {[%clk 0:00:44.3]} 27. Rcd1 {[%clk 0:00:56]} 27... Qd8 {[%clk 0:00:42.9]}
28. e3 {[%clk 0:00:45.8]} 28... Bc7 {[%clk 0:00:41.3]} 29. Re2 {[%clk
0:00:43.6]} 29... b5 {[%clk 0:00:29.4]} 30. Rde1 {[%clk 0:00:42.8]} 30... b4
{[%clk 0:00:29.6]} 31. axb4 {[%clk 0:00:43.7]} 31... axb4 {[%clk 0:00:30.3]} 32.
Na4 {[%clk 0:00:42]} 32... Bd6 {[%clk 0:00:27.1]} 33. b3 {[%clk 0:00:38.6]}
33... Re4 {[%clk 0:00:19.7]} 34. Rc2 {[%clk 0:00:34.9]} 34... Nb8 {[%clk
0:00:19.2]} 35. Ra1 {[%clk 0:00:27.1]} 35... Qc7 {[%clk 0:00:09.1]} 36. Nc5
{[%clk 0:00:26.2]} 36... Bxc5 {[%clk 0:00:08.7]} 37. Rxc5 {[%clk 0:00:27.1]}
37... Nfd7 {[%clk 0:00:09.1]} 38. Rca5 {[%clk 0:00:25.7]} 38... Qd6 {[%clk
0:00:05.7]} 39. Ra7 {[%clk 0:00:22.6]} 39... Nf6 {[%clk 0:00:04.6]} 40. Rb7
{[%clk 0:00:18.5]} 40... Nbd7 {[%clk 0:00:03.3]} 41. Raa7 {[%clk 0:00:17.9]}
41... Rd8 {[%clk 0:00:03.3]} 42. Bxf6 {[%clk 0:00:15.8]} 42... Nxf6 {[%clk
0:00:03.3]} 43. Rxf7 {[%clk 0:00:16.3]} 43... Ne8 {[%clk 0:00:03.7]} 44. Rxg7+
{[%clk 0:00:16.2]} 44... Nxg7 {[%clk 0:00:03.4]} 45. Qf7+ {[%clk 0:00:16.6]} 1-0

[Event "*** SCC Grand Prix: Titled Tuesday Blitz"]
[Site "Chess.com"]
[Date "2020.09.29"]
[Round "9"]
[White "EvgenyRomanov"]
[Black "youngKID"]
[Result "0-1"]
[WhiteElo "2620"]
[BlackElo "2779"]
[TimeControl "180+1"]
[EndTime "11:44:20 PDT"]
[Termination "youngKID won by resignation"]

1. b3 {[%clk 0:03:00.9]} 1... b6 {[%clk 0:02:59.1]} 2. Bb2 {[%clk 0:03:00.3]}
2... Bb7 {[%clk 0:02:59.7]} 3. Nf3 {[%clk 0:03:00.4]} 3... Nf6 {[%clk
0:02:58.8]} 4. e3 {[%clk 0:03:00.7]} 4... g6 {[%clk 0:02:58.8]} 5. d4 {[%clk
0:03:00.7]} 5... Bg7 {[%clk 0:02:58.8]} 6. Nbd2 {[%clk 0:03:00.8]} 6... O-O
{[%clk 0:02:58.8]} 7. Bd3 {[%clk 0:03:01.4]} 7... c5 {[%clk 0:02:58.1]} 8. O-O
{[%clk 0:03:00.3]} 8... Nc6 {[%clk 0:02:58]} 9. a3 {[%clk 0:02:56.5]} 9... d5
{[%clk 0:02:52.4]} 10. Qe2 {[%clk 0:02:54.8]} 10... a5 {[%clk 0:02:52.4]} 11.
dxc5 {[%clk 0:02:44.5]} 11... bxc5 {[%clk 0:02:52.2]} 12. e4 {[%clk 0:02:37]}
12... Nxe4 {[%clk 0:02:29.7]} 13. Bxg7 {[%clk 0:02:33.9]} 13... Nxd2 {[%clk
0:02:30.1]} 14. Bxf8 {[%clk 0:02:17.5]} 14... Nxf3+ {[%clk 0:02:29.9]} 15. Qxf3
{[%clk 0:02:16.1]} 15... Kxf8 {[%clk 0:02:30.3]} 16. Qe3 {[%clk 0:02:13.1]}
16... Qd6 {[%clk 0:02:28.9]} 17. Rae1 {[%clk 0:02:08.4]} 17... e5 {[%clk
0:02:24.4]} 18. Qh6+ {[%clk 0:02:04.4]} 18... Kg8 {[%clk 0:02:24.3]} 19. Re3
{[%clk 0:02:04.9]} 19... Bc8 {[%clk 0:02:11.4]} 20. Rfe1 {[%clk 0:01:57.2]}
20... Be6 {[%clk 0:01:54.9]} 21. h4 {[%clk 0:01:39.3]} 21... e4 {[%clk
0:01:53.2]} 22. Bf1 {[%clk 0:01:38]} 22... Nd4 {[%clk 0:01:52.9]} 23. Rc3 {[%clk
0:01:32.6]} 23... a4 {[%clk 0:01:38.6]} 24. h5 {[%clk 0:01:16.4]} 24... axb3
{[%clk 0:01:36.6]} 25. cxb3 {[%clk 0:01:17.3]} 25... Rxa3 {[%clk 0:01:23.7]} 26.
Rec1 {[%clk 0:01:16.4]} 26... Nxb3 {[%clk 0:01:19.8]} 27. Rg3 {[%clk 0:00:48.7]}
27... c4 {[%clk 0:01:06.3]} 28. Rd1 {[%clk 0:00:48]} 28... Qf8 {[%clk
0:01:00.4]} 29. Qf4 {[%clk 0:00:44.1]} 29... Ra8 {[%clk 0:00:54.3]} 30. h6
{[%clk 0:00:33.1]} 30... Rc8 {[%clk 0:00:46.5]} 31. f3 {[%clk 0:00:17.3]} 31...
c3 {[%clk 0:00:41.7]} 32. fxe4 {[%clk 0:00:17.1]} 32... c2 {[%clk 0:00:41.8]}
33. Re1 {[%clk 0:00:17.4]} 33... c1=Q {[%clk 0:00:37.3]} 34. Rxc1 {[%clk
0:00:17.5]} 34... Nxc1 {[%clk 0:00:38.2]} 35. exd5 {[%clk 0:00:17.2]} 35... Bxd5
{[%clk 0:00:38.4]} 36. Rh3 {[%clk 0:00:14.6]} 36... Be6 {[%clk 0:00:37.8]} 37.
Rh4 {[%clk 0:00:13.8]} 37... Nb3 {[%clk 0:00:28.7]} 38. Qf6 {[%clk 0:00:13.3]}
38... Nc5 {[%clk 0:00:24]} 39. Bb5 {[%clk 0:00:12.1]} 39... Rb8 {[%clk
0:00:22.2]} 40. Be2 {[%clk 0:00:09.8]} 40... Nd7 {[%clk 0:00:21.9]} 41. Qa1
{[%clk 0:00:07.9]} 41... Qc5+ {[%clk 0:00:21]} 42. Kh2 {[%clk 0:00:07.3]} 42...
Qe5+ {[%clk 0:00:21.4]} 43. Qxe5 {[%clk 0:00:05.5]} 43... Nxe5 {[%clk
0:00:22.3]} 44. Re4 {[%clk 0:00:05.9]} 44... Nd7 {[%clk 0:00:22.3]} 45. g4
{[%clk 0:00:05.8]} 45... Nf6 {[%clk 0:00:22.4]} 46. Kg3 {[%clk 0:00:06.3]} 46...
Nxe4+ {[%clk 0:00:22.2]} 0-1